Cogmind - Beta 16.1 @@@ ROGUE MODE // 2026.03.23 @ 16:36:43 Player: Kathisto Result: Self-destructed Performance ------------- Evolutions (2) 1000 Regions Visited (6) 1200 Robots Destroyed (51) 255 Value Destroyed (943) 943 Prototype IDs (2) 40 Alien Tech Used (0) 0 Bonus (84) 84 TOTAL SCORE: 3522 Bonus ------- Follower Combat Kills 84 Cogmind --------- Core Integrity 542/550 Matter 210/300 Energy 280/280 System Corruption 0% Temperature Cool (2) Movement Walking (112) Location -8/Materials Parts ------- > --- POWER (1) -------- Heavy Ion Engine > --- PROPULSION (4) --- Aluminum Leg Improved Aluminum Leg Carbon-fiber Leg VSS Leg > --- UTILITY (3) ------ Large Storage Unit Advanced Visual Processing Unit Seismic Detector > --- WEAPON (3) ------- Assault Rifle Heavy Assault Rifle Enhanced Autogun > --- INVENTORY (15) --- Aluminum Leg Improved Aluminum Leg Carbon-fiber Leg Advanced Heat Sink High-capacity Storage Unit High-capacity Matter Pod (200) Seismic Detector Heavy Assault Rifle Rocket Launcher Improved Grenade Launcher Maul Peak State ------------ > --- POWER ------------ Heavy Ion Engine > --- PROPULSION ------- Aluminum Leg Improved Aluminum Leg Carbon-fiber Leg VSS Leg > --- UTILITY ---------- Large Storage Unit Advanced Visual Processing Unit Seismic Detector > --- WEAPON ----------- Assault Rifle Heavy Assault Rifle Enhanced Autogun > --- INVENTORY -------- Aluminum Leg Improved Aluminum Leg Advanced Heat Sink High-capacity Storage Unit High-capacity Matter Pod Seismic Detector Heavy Assault Rifle Rocket Launcher Improved Grenade Launcher Maul [Rating: 26] Favorites ----------- Power Deuterium Engine Engine Deuterium Engine Propulsion Improved Aluminum Leg Leg Improved Aluminum Leg Utility Seismic Detector Device Seismic Detector Storage Medium Storage Unit Processor Advanced Visual Processing Unit Weapon Heavy Assault Rifle Ballistic Gun Heavy Assault Rifle Launcher Rocket Launcher Build | -11 -10 -9 -9 -9 -8 -8 ------- Run | Yrd Mat Mat Min Exi Min Mat Slots Evolved 4 | . . 2 . . . 2 Power . | . . . . . . . Propulsion 2 | . . 1 . . . 1 Utility 1 | . . . . . . 1 Weapon 1 | . . 1 . . . . Parts Attached 29 | 8 . 10 1 . 2 8 Power 5 | 1 . 2 . . . 2 Engine 5 | 1 . 2 . . . 2 Core . | . . . . . . . Reactor . | . . . . . . . Propulsion 10 | 2 . 4 . . 1 3 Treads . | . . . . . . . Leg 10 | 2 . 4 . . 1 3 Wheel . | . . . . . . . Hover . | . . . . . . . Flight . | . . . . . . . Utility 5 | 2 . 1 1 . . 1 Device 1 | 1 . . . . . . Storage 3 | 1 . 1 1 . . . Processor 1 | . . . . . . 1 Hackware . | . . . . . . . Protection . | . . . . . . . Artifact . | . . . . . . . Weapon 9 | 3 . 3 . . 1 2 Energy Gun . | . . . . . . . Energy Cannon . | . . . . . . . Ballistic Gun 8 | 3 . 3 . . . 2 Ballistic Cannon . | . . . . . . . Launcher 1 | . . . . . 1 . Special Weapon . | . . . . . . . Impact Weapon . | . . . . . . . Slashing Weapon . | . . . . . . . Piercing Weapon . | . . . . . . . Special Melee Weapon . | . . . . . . . Unidentified Prototypes 2 | . . . . . . 2 Parts Lost 2 | . 1 . . . 1 . Power 1 | . 1 . . . . . Propulsion . | . . . . . . . Utility . | . . . . . . . Weapon 1 | . . . . . 1 . Highest Loss Streak 1 | . 1 . . . 1 . To Critical Strikes . | . . . . . . . Average Backups 8 | 1 7 9 9 10 9 8 Power . | . 1 1 . . . . Propulsion 2 | . 1 1 3 3 3 1 Utility 2 | . 1 2 4 4 4 4 Weapon 3 | . 3 4 2 3 2 2 Tool/Special . | . . . . . . . Unused Backups 16 | . 4 3 1 1 . 7 Power 1 | . . 1 . . . . Propulsion 3 | . 1 . . . . 2 Utility 4 | . . . . 1 . 3 Weapon 8 | . 3 2 1 . . 2 Tool/Special . | . . . . . . . Average Slot Usage (%) 98 | . 95 98 100 100 100 94 Engine 10 | . 9 10 11 11 11 9 Leg 32 | . 28 32 33 33 33 36 Device 11 | . 14 11 11 11 11 9 Storage 11 | . 14 11 11 11 11 9 Ballistic Gun 31 | . 28 32 33 33 32 27 Peak Build Rating 26 | 7 8 19 18 18 18 26 Average Rating 15 | 5 7 16 18 18 17 21 On Entrance 12 | . 7 7 18 18 18 18 Avg Prop Armor Cover (%) . | . . . . . . . Naked Turns . | . . . . . . . Heaviest Build 38 | 13 13 29 29 29 29 38 Greatest Support 51 | 20 20 39 39 39 41 51 Greatest Overweight (x) 1 | 1 . . . . . . Average Overweight (x) . | . . . . . . . Largest Inventory Capacity 15 | 8 8 10 15 10 10 15 Average Capacity 9 | 7 8 9 10 10 10 14 Most Carried 11 | 3 8 10 10 10 10 11 Average Carried 8 | 1 7 9 9 10 9 8 Final Capacity 15 | 8 8 10 10 10 10 15 Final Carried 11 | 3 8 10 10 10 10 11 Class Distribution -------------------- 68% | Gunner 24% | Mutant 3% | Skirmisher Dominant Class ---------------- Mutant | -10/Materials Gunner | -9/Materials Gunner | -9/Mines Gunner | -9/Exiles Gunner | -8/Mines Skirmisher | -8/Materials Resources | -11 -10 -9 -9 -9 -8 -8 ----------- Run | Yrd Mat Mat Min Exi Min Mat Matter Collected 1484 | 335 193 678 112 . 65 101 Remotely . | . . . . . . . Salvage Created 1496 | 156 274 762 111 . 65 128 Parts 107 | 11 17 57 5 . 4 13 Haulers Intercepted 3 | . . 2 . . . 1 Recyclers Shooed . | . . . . . . . Parts Field Recycled . | . . . . . . . Retrieved Matter . | . . . . . . . Parts Self-Destructed . | . . . . . . . Prevented . | . . . . . . . Parts Restored . | . . . . . . . Kills | -11 -10 -9 -9 -9 -8 -8 ------- Run | Yrd Mat Mat Min Exi Min Mat Combat Hostiles Destroyed 32 | . 11 13 2 . 3 3 Guns 30 | . 11 13 2 . 1 3 AOE 2 | . . . . . 2 . Classes Destroyed 9 | 3 2 4 . . . . Worker 4 | 1 . 2 1 . . . Builder 3 | . . 3 . . . . Tunneler 6 | 3 . 1 1 . . 1 Hauler 3 | . . 2 . . . 1 Recycler 1 | 1 . . . . . . Watcher 2 | . . 2 . . . . Swarmer 14 | . 6 3 . . 2 3 Grunt 14 | . 5 6 2 . 1 . Sentry 4 | . . 4 . . . . Best Kill Streak 5 | 5 3 4 2 . 2 4 Combat Bots Only 3 | . 3 3 2 . 2 3 Max Kills in Single Turn 2 | 1 2 2 1 . 2 1 Gunslinging 1 | . 1 1 . . . . Exploded 2 | . . . . . 2 . Melee . | . . . . . . . Uniques/NPCs Destroyed . | . . . . . . . Combat | -11 -10 -9 -9 -9 -8 -8 -------- Run | Yrd Mat Mat Min Exi Min Mat Hostile Shots Fired 133 | . 38 50 19 . 18 8 Missed 38 | . 9 16 4 . 8 1 Hits 95 | . 29 34 15 . 10 7 Projectile 95 | . 29 34 15 . 10 7 Critical Strikes 1 | . . 1 . . . . Damage Taken 1040 | . 260 348 207 . 155 70 Core 142 | . 42 47 25 . 20 8 Absorbed by Shields . | . . . . . . . Core Remaining (%) 86 | 100 83 . . . 77 . Volleys Fired 116 | 21 31 43 9 . 7 5 Largest 3 | 2 2 3 3 . 3 3 Hottest 69 | 40 40 69 69 . 69 68 Shots Fired 294 | 42 62 129 27 . 19 15 Gun 293 | 42 62 129 27 . 18 15 Cannon . | . . . . . . . Launcher 1 | . . . . . 1 . Special . | . . . . . . . Kinetic 293 | 42 62 129 27 . 18 15 Thermal . | . . . . . . . Explosive 1 | . . . . . 1 . Electromagnetic . | . . . . . . . Robot Hit Streak 9 | 7 9 9 9 . 4 5 Robot Miss Streak 6 | 2 6 5 3 . 5 6 Penetration Max . | . . . . . . . Secondary Targets 7 | . 2 3 1 . 1 . Max Gunslinging Chain 1 | . 1 1 1 . 1 . Shots Hit Robots 166 | 31 34 67 16 . 11 7 Core Hits 76 | 6 16 36 7 . 5 6 Critical Kills . | . . . . . . . Critical Parts Destroyed 2 | . . 1 1 . . . Critical Strikes 2 | . . 1 1 . . . Destroy 2 | . . 1 1 . . . Melee Attacks . | . . . . . . . Impact . | . . . . . . . Slashing . | . . . . . . . Piercing . | . . . . . . . Sneak Attacks . | . . . . . . . Combat Hostiles . | . . . . . . . Follow-up Attacks . | . . . . . . . Damage Inflicted 2619 | 365 421 1143 286 . 285 119 Guns 2463 | 365 421 1131 236 . 191 119 Cannons . | . . . . . . . Explosions 94 | . . . . . 94 . Melee . | . . . . . . . Ramming 62 | . . 12 50 . . . Kinetic 2463 | 365 421 1131 236 . 191 119 Thermal . | . . . . . . . Explosive 94 | . . . . . 94 . Electromagnetic . | . . . . . . . Impact . | . . . . . . . Slashing . | . . . . . . . Piercing . | . . . . . . . Highest Corruption . | . . . . . . . Average Corruption . | . . . . . . . Corruption Purged . | . . . . . . . Corruption Blocked . | . . . . . . . Overload Shots . | . . . . . . . Overflow Damage . | . . . . . . . Projectiles . | . . . . . . . Explosions . | . . . . . . . Melee . | . . . . . . . Knockbacks . | . . . . . . . Impact . | . . . . . . . Kinetic . | . . . . . . . Secondary . | . . . . . . . Self-Inflicted Damage . | . . . . . . . Shots . | . . . . . . . Rammed . | . . . . . . . Targets Rammed 6 | . . 3 3 . . . Kicked 6 | . . 3 3 . . . Crushed . | . . . . . . . Highest Temperature 94 | . 2 24 94 . 36 27 Average Temperature 16 | . 2 5 55 . 20 12 Received Heat Transfer 312 | . 51 60 120 . 72 9 Siege Activations . | . . . . . . . Martial Activations . | . . . . . . . Shielding Activations . | . . . . . . . Robots Disrupted . | . . . . . . . Combat Hostiles . | . . . . . . . Robots Corrupted . | . . . . . . . Combat Hostiles . | . . . . . . . Parts Fried . | . . . . . . . Impact Corruptions . | . . . . . . . Robots Melted . | . . . . . . . Combat Hostiles . | . . . . . . . Parts Melted 1 | . . . . . 1 . Heat Transferred . | . . . . . . . Parts Sabotaged . | . . . . . . . Parts Stolen . | . . . . . . . Parts Stripped . | . . . . . . . Power Chain Reactions . | . . . . . . . Alert | -11 -10 -9 -9 -9 -8 -8 ------- Run | Yrd Mat Mat Min Exi Min Mat Maximum Alert Level 1 | . . 1 . . . . Low Security (%) 99 | 100 100 97 100 . 100 100 Level 1 . | . . 2 . . . . Level 2 . | . . . . . . . Level 3 . | . . . . . . . Level 4 . | . . . . . . . Level 5 . | . . . . . . . High Security . | . . . . . . . Max Security . | . . . . . . . Peak Influence 206 | 10 155 206 68 . 132 94 Initial 68 | . . 44 68 . . 47 Average 59 | 1 95 81 14 . 72 53 Influence Increases 1088 | 25 315 415 60 . 183 90 Destroy 0b10 Robot/C 720 | . 220 260 40 . 140 60 Destroy 0b10 Robot/NC 95 | 25 . 50 10 . . 10 Destroy Leader 160 | . 50 68 10 . 20 12 Allied During Kill 17 | . . . . . 17 . Successful Hack 29 | . . 21 . . . 8 Select Force Hacks 30 | . 30 . . . . . Destroy Structure 7 | . . 1 . . 6 . Lose Combat Pursuer 30 | . 15 15 . . . . Influence Decreases 1061 | 25 208 346 236 . 60 186 Entered New Map 247 | . . 63 108 . . 76 Time Decay 784 | 25 198 283 128 . 40 110 Lost Part 10 | . 10 . . . . . Lost Ally 20 | . . . . . 20 . Squads Dispatched 4 | . 2 2 . . . . Investigation 1 | . 1 . . . . . Extermination . | . . . . . . . Reinforcement 3 | . 1 2 . . . . Assault . | . . . . . . . Garrison . | . . . . . . . Intercept . | . . . . . . . Searches Triggered . | . . . . . . . Construction Impeded . | . . . . . . . Haulers Reinforced . | . . . . . . . Active Scanning Responses . | . . . . . . . Cargo Convoy Interrupts . | . . . . . . . Stealth | -11 -10 -9 -9 -9 -8 -8 --------- Run | Yrd Mat Mat Min Exi Min Mat Distress Signals 5 | . 2 2 . . . 1 Communications Jammed . | . . . . . . . Distress Signals . | . . . . . . . Times Spotted 50 | . 17 21 2 . 5 5 Peak Tracking Total 5 | . 5 4 2 . 3 4 Tactical Retreats 2 | . 1 1 . . . . Traps | -11 -10 -9 -9 -9 -8 -8 ------- Run | Yrd Mat Mat Min Exi Min Mat Traps Triggered . | . . . . . . . Indirectly . | . . . . . . . Trap Hack Attempts . | . . . . . . . Triggered . | . . . . . . . Disarmed . | . . . . . . . Reprogrammed . | . . . . . . . Reused . | . . . . . . . Traps Extracted . | . . . . . . . Installed . | . . . . . . . Triggered . | . . . . . . . Machines | -11 -10 -9 -9 -9 -8 -8 ---------- Run | Yrd Mat Mat Min Exi Min Mat Machines Disabled . | . . . . . . . Max in Single Turn . | . . . . . . . Machines Repaired . | . . . . . . . Machines Dismantled . | . . . . . . . Machines Sabotaged . | . . . . . . . Overloaded Fab Kills . | . . . . . . . Hacking | -11 -10 -9 -9 -9 -8 -8 --------- Run | Yrd Mat Mat Min Exi Min Mat Machines Accessed 8 | . 1 5 . 1 . 1 Terminals 6 | . . 5 . . . 1 Fabricators . | . . . . . . . Repair Stations . | . . . . . . . Recycling Units 1 | . 1 . . . . . Scanalyzers . | . . . . . . . Garrison Access . | . . . . . . . Total Hacks 18 | . 1 13 . 1 . 3 Successful 14 | . 1 9 . 1 . 3 Failed 4 | . . 4 . . . . Catastrophic . | . . . . . . . Database Lockouts . | . . . . . . . Manual 16 | . 1 12 . . . 3 Terminals 16 | . . 13 . . . 3 Fabricators . | . . . . . . . Repair Stations . | . . . . . . . Recycling Units 1 | . 1 . . . . . Scanalyzers . | . . . . . . . Garrison Access . | . . . . . . . Terminal Hacks 4 | . . 2 . 1 . 1 Record 1 | . . . . 1 . . Branch Access Points 2 | . . 1 . . . 1 Hauler Manifests 1 | . . 1 . . . . Fabricator Hacks . | . . . . . . . Repair Station Hacks . | . . . . . . . Recycling Unit Hacks . | . . . . . . . Scanalyzer . | . . . . . . . Garrison Access Hacks . | . . . . . . . Unauthorized Hacks 10 | . 1 7 . . . 2 Terminals 9 | . . 7 . . . 2 Botnet 3 | . . 2 . . . 1 Skim 6 | . . 5 . . . 1 Fabricators . | . . . . . . . Repair Stations . | . . . . . . . Recycling Units 1 | . 1 . . . . . Tunnel 1 | . 1 . . . . . Scanalyzers . | . . . . . . . Garrison Access . | . . . . . . . Data Cores Recovered . | . . . . . . . Used . | . . . . . . . Hacking Detections 5 | . . 4 . . . 1 Full Trace Events . | . . . . . . . Feedback Events . | . . . . . . . Feedback Blocked . | . . . . . . . Robot Schematics Acquired . | . . . . . . . Robots Built . | . . . . . . . Authchips . | . . . . . . . Time . | . . . . . . . Total Robot Build Rating . | . . . . . . . Part Schematics Acquired . | . . . . . . . Parts Built . | . . . . . . . Authchips . | . . . . . . . Time . | . . . . . . . Total Part Build Rating . | . . . . . . . Part Studies Acquired . | . . . . . . . Parts Repaired . | . . . . . . . Time . | . . . . . . . Parts Recycled . | . . . . . . . Recycled Matter . | . . . . . . . Retrieved Matter . | . . . . . . . Retrieved Components . | . . . . . . . Parts Scanalyzed . | . . . . . . . Part Schematics Acquired . | . . . . . . . Parts Damaged . | . . . . . . . Bothacking | -11 -10 -9 -9 -9 -8 -8 ------------ Run | Yrd Mat Mat Min Exi Min Mat Used RIF Installer . | . . . . . . . Robots Hacked . | . . . . . . . Non-combat . | . . . . . . . Combat . | . . . . . . . Robot Hacks Applied . | . . . . . . . Relay Couplers Released . | . . . . . . . Fabnet Peak Effective % . | . . . . . . . Robots Rewired . | . . . . . . . Allies Hacked . | . . . . . . . Hacks Repelled . | . . . . . . . Allies | -11 -10 -9 -9 -9 -8 -8 -------- Run | Yrd Mat Mat Min Exi Min Mat Total Allies 6 | . . . 6 . . . Largest Group 5 | . . . 5 5 2 . Highest-Rated Group 82 | . . . 82 82 32 . Highest-Rated Ally 31 | . . . 31 31 16 . Total Orders . | . . . . . . . Ally Attacks 20 | . . . . . 20 . Total Damage 176 | . . . . . 176 . Kills 4 | . . . . . 4 . Allies Corrupted . | . . . . . . . Allies Melted . | . . . . . . . Intel | -11 -10 -9 -9 -9 -8 -8 ------- Run | Yrd Mat Mat Min Exi Min Mat Active Infowar (turns) 2640 | 33 512 809 625 335 94 232 Optics 110 | . . . . . . 110 Seismic 2640 | 33 512 809 625 335 94 232 Robot Analysis Total . | . . . . . . . Derelict Logs Recovered 1 | . . . 1 . . . Drone Launches . | . . . . . . . Drone Recoveries . | . . . . . . . Exploration | -11 -10 -9 -9 -9 -8 -8 ------------- Run | Yrd Mat Mat Min Exi Min Mat Turns Passed 2762 | 155 512 809 625 335 94 232 Spaces Moved 1809 | 72 289 509 472 252 56 159 Core 13 | 13 . . . . . . Treads . | . . . . . . . Legs 1796 | 59 289 509 472 252 56 159 Wheels . | . . . . . . . Hover . | . . . . . . . Flight . | . . . . . . . Fastest Speed 50 | 50 120 120 120 120 120 112 Average Speed 119 | 108 120 120 120 120 120 117 Slowest Speed 120 | 120 120 120 120 120 120 120 Overloaded Moves . | . . . . . . . Propulsion Burnouts . | . . . . . . . Robots Hopped . | . . . . . . . Potential Cave-ins . | . . . . . . . Cave-ins Triggered . | . . . . . . . Exploration Rate (%) 42 | 4 59 42 85 59 26 19 Regions Visited 6 Branch Regions 3 Pre-discovered Areas 2 | . 1 . . 1 . . Known Exits Taken 2 | . . 1 1 . . . Unknown Exits Taken 4 | 1 1 . . 1 1 . Scrap Searched 2 | . . . 2 . . . Spaces Dug . | . . . . . . . Terrain Destroyed 6 | . . . . . 6 . Melee . | . . . . . . . Projectile . | . . . . . . . AOE 6 | . . . . . 6 . Terrain Rammed . | . . . . . . . Walls Destroyed . | . . . . . . . Machines Disabled . | . . . . . . . Actions | -11 -10 -9 -9 -9 -8 -8 --------- Run | Yrd Mat Mat Min Exi Min Mat Total 2164 | 102 394 615 509 286 68 190 Wait 159 | . 62 31 22 33 . 11 Move 1803 | 71 288 508 471 251 55 159 Hop . | . . . . . . . Pick Up 24 | 2 9 8 1 1 1 2 Fast Attach 9 | 7 . 1 . . . 1 Attach 5 | . . 2 . . 1 2 Detach . | . . . . . . . Swap 22 | 1 . 8 2 . 3 8 Drop 20 | . 4 11 1 1 1 2 Fire 116 | 21 31 43 9 . 7 5 Melee . | . . . . . . . Ram . | . . . . . . . Kick 6 | . . 3 3 . . . Crush . | . . . . . . . Escape Stasis . | . . . . . . . Rewire . | . . . . . . . Trap . | . . . . . . . Miscellaneous . | . . . . . . . Route ------- -11/Scrapyard -10/Materials (discovered 3 exits: *Mat x3) -9/Materials (discovered 3 exits: *Mat x2 / *Min) -9/Mines (discovered 2 exits: *Mat / *Exi) -9/Exiles -8/Mines -8/Materials History --------- Turn | Location | Event 5 | -11/Scrapyard | Discovered new exit (range 16) 156 | -11/Scrapyard | Entered Materials 309 | -10/Materials | Build established: Mutant 369 | -10/Materials | Discovered new exit (range 14) 492 | -10/Materials | Discovered new exit (range 16) 650 | -10/Materials | Discovered new exit (range 15) 668 | -10/Materials | Entered another Materials area 668 | -9/Materials | Evolved 2 slots: Propulsion x1, Weapon x1 866 | -9/Materials | Discovered new exit (range 4) 902 | -9/Materials | Identified exit to Mines 988 | -9/Materials | Build established: Gunner 1233 | -9/Materials | Discovered new exit (range 13) 1477 | -9/Materials | Entered Mines 1480 | -9/Mines | Received a Mining Laser from a helpful Derelict 1599 | -9/Mines | Found a Scrap Suit stashed away for nefarious purposes 1642 | -9/Mines | Received a Rocket Launcher from a helpful Derelict 1670 | -9/Mines | Discovered new exit (range 7) 1910 | -9/Mines | Assisted by bots powering up and referring to "LRC-V3" 1918 | -9/Mines | Identified exit to Exiles 2078 | -9/Mines | Deemed a non-threat by the Exiles lab entrance 2102 | -9/Mines | Entered Exiles 2102 | -9/Exiles | Accompanied by 5 allies 2132 | -9/Exiles | Led the pair of lost Derelicts to a safe place 2132 | -9/Exiles | Met 8R-AWN 2153 | -9/Exiles | Met EX-HEX 2198 | -9/Exiles | Met EX-DEC 2206 | -9/Exiles | Learned location of Zion (-6) 2389 | -9/Exiles | Discovered new exit (range 10) 2437 | -9/Exiles | Entered Mines 2437 | -8/Mines | Accompanied by 3 allies 2521 | -8/Mines | Discovered new exit (range 11) 2531 | -8/Mines | Entered Materials 2531 | -8/Materials | Evolved 2 slots: Propulsion x1, Utility x1 2763 | -8/Materials | Self-destructed Last Messages --------------- 02609_ Dropped Broken Imp. Aluminum Leg. 02613_ K-01 Serf collects debris. 02653_ Acquired Adv. Visual Processing Unit. 02665_ Connecting with Terminal... 02665_ Current location identified: Materials >>Trojan(Botnet) Trojan loaded successfully. Testing... Terminal linked with 0 systems. Awaiting botnet instructions. >>Access(Branch) No branch access points found. >>Trojan(Skim) Trojan loaded successfully. Testing... Terminal linked with 0 systems. Please expand to 4 more systems! 02705_ Acquired Imp. Grenade Launcher. 02712_ Acquired Carbon-fiber Leg. 02760_ T-07 Excavator destroyed. Map ----- +----------------------------------------------------+ | ??# ###+######??????????????????????? | | ??####### # #??????????????????????? | | ????????# # """ #??????????????????????? | | ????????# #""""" #??????????????????????? | | ????????# #""""" #??????????????????????? | | ????????# #""""" #??????????????????????? | | ???????###+###+### """ #??????????????????????? | | ???????# # #??????????????????????? | | ???????# = # ###########????????????? | | ???????# # # #????????????? | | ???????# """ ##+####### """ """ #????????????? | | ???????#""== """ ## #?????# """ """ #????????????? | | ???????#"Y== """ ## #?????# """ """ #????????????? | | ???????#""[=* ## #?????# #????????????? | | ???????# ***=[] ## #?????# ?????????????? | | ???????###+########+###???# ???????????????? | | ?????????# ## #???? ?????????????????? | | ?????????#=## #######+####???????????????? | | ?????????# ## # #???????????????? | | ?????????# ## # #???????????????? | | ?????????# ## " " """ # #???????????????? | | ########## ## "R" """ +!=Y#### #???????????????? | | [ ## ## """ """ #|%!#??? #???????????????? | | """## ## # * #??? #???????????????? | | ! """## ############ #??? #???????????????? | | """# @#??? #???????????????? | | + = #??? #???????????????? | | """# ! #??? #???????????????? | | """######### #??? ???????????????? | | [ """#???????# #???? ???????????????? | | #???????# === #???? ???????????????? | | #########??###### === #???? ??????????????? | | ???????????# == #???? #??????????????? | | ???????????# ! #????####??????????????? | | ???????????# #??????????????????????? | | ???????????################??????????????????????? | | ?????????????????????????????????????????????????? | | ?????????????????????????????????????????????????? | | ?????????????????????????????????????????????????? | | ?????????????????????????????????????????????????? | | ?????????????????????????????????????????????????? | | ?????????????????????????????????????????????????? | | ?????????????????????????????????????????????????? | | ?????????????????????????????????????????????????? | | ?????????????????????????????????????????????????? | | ?????????????????????????????????????????????????? | | ?????????????????????????????????????????????????? | | ?????????????????????????????????????????????????? | | ?????????????????????????????????????????????????? | | ?????????????????????????????????????????????????? | +----------------------------------------------------+ Best States ------------- Heat Dissipation 31 Energy Generation 14 Energy Capacity 280 Matter Stores 300 Matter Capacity 300 Sight Range 20 Terrain Scan Density 10 Evasion (%) 55 Item Schematics ----------------- None Robot Schematics ------------------ None Fabricated ------------ Nothing Repaired ---------- Nothing Studied --------- None Alien Tech Used ----------------- None Achievements -------------- None Challenges ------------ None Game ------ Seed BehemothSurveybotBallwheel Manual? 0 Play Time 00:13:54 Cumulative 176.8 hours Start 2026.03.23 @ 16:23:25 End 2026.03.23 @ 16:36:43 Sessions 1 Manual Loads 0 Difficulty Rogue Special Mode None Game No. 91 Rogue 91 Adventurer 0 Explorer 0 Win Type - Total 19 Types 9/1/5/1/0/1/1/1/0/0 Lore% 65 Gallery% 58 Achievement% 61 Wizard Run 0 Options --------- Layout 1 ASCII 0 Keyboard 0 Movement Arrows Keybinds 0 Fullscreen 1 Font 24/Tamsyn Map View 50x35 Zoom Use 0% Tactical HUD 1 Map Filters NONE Filters NONE Steam 1 RUN: 889f8448-6d11-40b0-8da9-390db65c8680